[Event "25th European Club Cup Women 2021"]
[Site "Struga"]
[Date "2021.09.24"]
[Round "7.8"]
[White "Janzelj, Lara"]
[Black "Galunova, Tsveta"]
[Result "0-1"]
[ECO "A27"]
[WhiteElo "2186"]
[BlackElo "2190"]
[Annotator "ChessBase"]
[PlyCount "142"]
[EventDate "2021.09.18"]
[EventType "team-tourn"]
[EventCountry "MKD"]
[SourceTitle "playchess.com"]
[Source "ChessBase"]
[SourceQuality "1"]
[TimeControl "40/5400+30:1800+30"]

1. c4 {[%emt 0:00:04]} Nc6 {[%emt 0:10:40]} 2. g3 {[%emt 0:00:45]} e5 {[%emt 0:
00:55]} 3. Nc3 {[%emt 0:00:42]} f5 {[%emt 0:02:18]} 4. Nf3 {[%emt 0:03:55]} e4
{[%emt 0:02:51]} 5. Nh4 {[%emt 0:00:50]} d6 {[%emt 0:03:53]} 6. d3 {[%emt 0:06:
50]} exd3 {[%emt 0:18:40]} 7. Qxd3 {[%emt 0:01:00]} Ne5 {[%emt 0:02:31]} 8. Qc2
{[%emt 0:00:41]} g6 {[%emt 0:03:29]} 9. Bg2 {[%emt 0:01:56]} Bg7 {[%emt 0:02:
11]} 10. O-O {[%emt 0:01:13]} Ne7 {[%emt 0:01:42]} 11. Rd1 {[%emt 0:04:04]} c6
{[%emt 0:05:58]} 12. b3 {[%emt 0:03:08]} Be6 {[%emt 0:09:13]} 13. Ba3 {[%emt 0:
05:39]} Qa5 {[%emt 0:05:12]} 14. Bb2 {[%emt 0:25:50]} Rd8 {[%emt 0:03:29]} 15.
Nf3 {[%emt 0:01:45]} Nxf3+ {[%emt 0:08:22]} 16. Bxf3 {[%emt 0:00:07]} O-O {
[%emt 0:00:18]} 17. Qd2 {[%emt 0:07:24]} Rfe8 {[%emt 0:04:41]} 18. a3 {[%emt 0:
05:27]} d5 {[%emt 0:07:16]} 19. b4 {[%emt 0:01:25]} Qc7 {[%emt 0:02:05]} 20.
Qe3 {[%emt 0:01:24]} Bf7 {[%emt 0:02:51]} 21. cxd5 {[%emt 0:02:13]} Nxd5 {
[%emt 0:00:14]} 22. Qc5 {[%emt 0:11:33]} Qb6 {[%emt 0:01:07]} 23. Qxb6 {
[%emt 0:04:42]} Nxb6 {[%emt 0:00:54]} 24. Rxd8 {[%emt 0:02:59]} Rxd8 {[%emt 0:
00:01]} 25. Rd1 {[%emt 0:00:34]} Rxd1+ {[%emt 0:00:36]} 26. Nxd1 {[%emt 0:00:
01]} Bd5 {[%emt 0:01:30]} 27. Kg2 {[%emt 0:01:41]} Bxb2 {[%emt 0:00:23]} 28.
Nxb2 {[%emt 0:00:07]} Kf7 {[%emt 0:00:10]} 29. Bxd5+ {[%emt 0:00:36]} cxd5 {
[%emt 0:00:56]} 30. Nd3 {[%emt 0:00:56]} Nc4 {[%emt 0:00:15]} 31. a4 {[%emt 0:
00:05]} b6 {[%emt 0:00:34]} 32. Kf3 {[%emt 0:01:57]} Ke6 {[%emt 0:00:15]} 33.
h4 {[%emt 0:00:46]} d4 {[%emt 0:00:49]} 34. Kf4 {[%emt 0:00:51]} h6 {[%emt 0:
00:25]} 35. g4 {[%emt 0:01:08]} fxg4 {[%emt 0:00:41]} 36. Kxg4 {[%emt 0:00:01]}
Nd2 {[%emt 0:00:31]} 37. Kf4 {[%emt 0:02:19]} Kf6 {[%emt 0:00:22]} 38. Ne1 {
[%emt 0:01:22]} g5+ {[%emt 0:00:31]} 39. hxg5+ {[%emt 0:00:15]} hxg5+ {[%emt 0:
00:01]} 40. Kg4 {[%emt 0:00:00]} Ne4 {[%emt 0:00:00]} 41. Nd3 {[%emt 0:03:48]}
Nc3 {[%emt 0:02:39]} 42. e3 {[%emt 0:02:00]} dxe3 {[%emt 0:00:57]} 43. fxe3 {
[%emt 0:00:05]} Nxa4 {[%emt 0:00:37]} 44. e4 {[%emt 0:02:12]} Nc3 {[%emt 0:00:
41]} 45. e5+ {[%emt 0:00:04]} Kg6 {[%emt 0:00:47]} 46. Nb2 {[%emt 0:04:37]} Nd5
{[%emt 0:03:13]} 47. Nd3 {[%emt 0:00:20]} a6 {[%emt 0:01:33]} 48. b5 {[%emt 0:
03:37]} axb5 {[%emt 0:06:17]} 49. Nc1 {[%emt 0:04:52]} Nf4 {[%emt 0:04:22]} 50.
Na2 {[%emt 0:07:32]} Nd3 {[%emt 0:06:12]} 51. e6 {[%emt 0:00:05]} Ne5+ {
[%emt 0:00:26]} 52. Kg3 {[%emt 0:00:07]} Kf6 {[%emt 0:00:39]} 53. Nc3 {[%emt 0:
00:26]} Kxe6 {[%emt 0:00:38]} 54. Nxb5 {[%emt 0:00:06]} Kd5 {[%emt 0:00:46]}
55. Nc7+ {[%emt 0:00:34]} Ke4 {[%emt 0:04:16]} 56. Ne6 {[%emt 0:01:18]} g4 {
[%emt 0:00:31]} 57. Nc7 {[%emt 0:00:25]} Kf5 {[%emt 0:00:31]} 58. Nb5 {[%emt 0:
00:39]} Nc4 {[%emt 0:01:28]} 59. Nc3 {[%emt 0:00:51]} Nd6 {[%emt 0:00:27]} 60.
Nd5 {[%emt 0:00:50]} Ne4+ {[%emt 0:00:22]} 61. Kg2 {[%emt 0:01:42]} b5 {
[%emt 0:00:18]} 62. Ne3+ {[%emt 0:00:17]} Kf4 {[%emt 0:00:26]} 63. Nc2 {
[%emt 0:00:32]} Nc3 {[%emt 0:01:36]} 64. Nb4 {[%emt 0:00:22]} g3 {[%emt 0:01:
16]} 65. Nd3+ {[%emt 0:00:11]} Ke3 {[%emt 0:00:19]} 66. Nb4 {[%emt 0:00:45]}
Ne4 {[%emt 0:00:35]} 67. Nc6 {[%emt 0:00:13]} Kf4 {[%emt 0:00:43]} 68. Nb4 {
[%emt 0:00:20]} Nc3 {[%emt 0:01:08]} 69. Nd3+ {[%emt 0:00:26]} Ke4 {[%emt 0:00:
38]} 70. Nb4 {[%emt 0:00:33]} Nd5 {[%emt 0:00:45]} 71. Nc2 {[%emt 0:00:32]}
Ne3+ {[%emt 0:00:09]} 0-1

[Event "25th European Club Cup Women 2021"]
[Site "Struga"]
[Date "2021.09.24"]
[Round "7.9"]
[White "Shuvalova, Polina"]
[Black "Goryachkina, Aleksandra"]
[Result "*"]
[ECO "A84"]
[WhiteElo "2510"]
[BlackElo "2608"]
[Annotator "ChessBase"]
[PlyCount "48"]
[EventDate "2021.09.18"]
[EventType "team-tourn"]
[EventCountry "MKD"]
[SourceTitle "playchess.com"]
[Source "ChessBase"]
[SourceQuality "1"]
[TimeControl "40/5400+30:1800+30"]

1. d4 {[%emt 0:00:05]} d5 {[%emt 0:00:19]} 2. c4 {[%emt 0:00:08]} e6 {[%emt 0:
00:13]} 3. Nc3 {[%emt 0:00:11]} c6 {[%emt 0:00:23]} 4. Nf3 {[%emt 0:00:17]} f5
{[%emt 1:31:35]} 5. Bf4 {[%emt 0:04:12]} Nf6 {[%emt 0:00:00]} 6. e3 {[%emt 0:
00:07]} Be7 {[%emt 0:00:00]} 7. h3 {[%emt 0:08:18]} O-O {[%emt 0:00:00]} 8. Bd3
{[%emt 0:03:37]} dxc4 {[%emt 0:02:00]} 9. Bxc4 {[%emt 0:00:08]} b5 {[%emt 0:00:
00]} 10. Bb3 {[%emt 0:03:22]} b4 {[%emt 0:00:00]} 11. Na4 {[%emt 1:15:35]} Nd5
{[%emt 0:00:00]} 12. O-O {[%emt 0:00:09]} Ba6 {[%emt 0:00:00]} 13. Re1 {
[%emt 0:04:25]} Nd7 {[%emt 0:00:00]} 14. Rc1 {[%emt 0:01:14]} Rc8 {[%emt 0:00:
00]} 15. Ne5 {[%emt 0:00:37]} Bb5 {[%emt 0:00:00]} 16. Nxd7 {[%emt 0:07:41]}
Qxd7 {[%emt 0:06:00]} 17. Nc5 {[%emt 0:00:10]} Bxc5 {[%emt 0:00:00]} 18. Rxc5 {
[%emt 0:05:57]} a5 {[%emt 0:07:00]} 19. a4 {[%emt 0:03:54]} bxa3 {[%emt 0:00:
00]} 20. bxa3 {[%emt 0:49:13]} a4 {[%emt 0:00:00]} 21. Bxa4 {[%emt 0:01:00]}
Ra8 {[%emt 0:00:00]} 22. Bxb5 {[%emt 0:00:37]} cxb5 {[%emt 0:00:00]} 23. Qb3 {
[%emt 0:00:18]} Ra5 {[%emt 0:00:00]} 24. Be5 {[%emt 0:04:29]} Rfa8 {[%emt 0:00:
00]} *

[Event "25th European Club Cup Women 2021"]
[Site "Struga"]
[Date "2021.09.24"]
[Round "7.9"]
[White "Atalik, Ekaterina"]
[Black "Dzagnidze, Nana"]
[Result "1/2-1/2"]
[ECO "A84"]
[WhiteElo "2429"]
[BlackElo "2525"]
[Annotator "ChessBase"]
[PlyCount "164"]
[EventDate "2021.09.18"]
[EventType "team-tourn"]
[EventCountry "MKD"]
[SourceTitle "playchess.com"]
[Source "ChessBase"]
[SourceQuality "1"]
[TimeControl "40/5400+30:1800+30"]

1. d4 {[%emt 0:00:05]} d5 {[%emt 0:00:19]} 2. c4 {[%emt 0:00:08]} e6 {[%emt 0:
00:13]} 3. Nc3 {[%emt 0:00:11]} c6 {[%emt 0:00:23]} 4. Nf3 {[%emt 0:00:17]} f5
{[%emt 1:31:35]} 5. Bf4 {[%emt 0:04:12]} Nf6 {[%emt 0:00:00]} 6. e3 {[%emt 0:
00:07]} Be7 {[%emt 0:00:00]} 7. h3 {[%emt 0:08:18]} O-O {[%emt 0:00:00]} 8. Bd3
{[%emt 0:03:37]} dxc4 {[%emt 0:00:00]} 9. Bxc4 {[%emt 0:00:08]} b5 {[%emt 0:00:
00]} 10. Bb3 {[%emt 0:03:22]} b4 {[%emt 0:00:00]} 11. Na4 {[%emt 0:06:45]} Nd5
{[%emt 0:00:00]} 12. O-O {[%emt 0:00:09]} Ba6 {[%emt 0:00:00]} 13. Re1 {
[%emt 0:04:25]} Nd7 {[%emt 0:00:00]} 14. Rc1 {[%emt 0:01:14]} Rc8 {[%emt 0:00:
00]} 15. Ne5 {[%emt 0:00:37]} Bb5 {[%emt 0:00:00]} 16. Nxd7 {[%emt 0:07:41]}
Qxd7 {[%emt 0:00:00]} 17. Nc5 {[%emt 0:00:10]} Bxc5 {[%emt 0:00:00]} 18. Rxc5 {
[%emt 0:05:57]} a5 {[%emt 0:00:00]} 19. a4 {[%emt 0:03:54]} bxa3 {[%emt 0:00:
00]} 20. bxa3 {[%emt 0:00:07]} a4 {[%emt 0:00:00]} 21. Bxa4 {[%emt 0:01:00]}
Ra8 {[%emt 0:00:00]} 22. Bxb5 {[%emt 0:00:37]} cxb5 {[%emt 0:00:00]} 23. Qb3 {
[%emt 0:00:18]} Ra5 {[%emt 0:00:00]} 24. Be5 {[%emt 0:04:29]} Rfa8 {[%emt 0:00:
00]} 25. Rb1 {[%emt 0:09:04]} Rxa3 {[%emt 0:00:00]} 26. Qxb5 {[%emt 0:00:09]}
Qxb5 {[%emt 0:00:00]} 27. Rcxb5 {[%emt 0:00:12]} Ra1 {[%emt 0:00:00]} 28. Rxa1
{[%emt 0:00:07]} Rxa1+ {[%emt 0:00:00]} 29. Kh2 {[%emt 0:00:04]} Ra7 {[%emt 0:
00:00]} 30. g4 {[%emt 0:00:47]} fxg4 {[%emt 0:00:00]} 31. hxg4 {[%emt 0:00:06]}
Kf7 {[%emt 0:00:00]} 32. Rb2 {[%emt 0:05:19]} h6 {[%emt 0:00:00]} 33. Kg3 {
[%emt 0:01:00]} Ne7 {[%emt 0:00:00]} 34. Kf3 {[%emt 0:01:42]} Nd5 {[%emt 0:00:
00]} 35. Rb3 {[%emt 0:00:38]} Ne7 {[%emt 0:00:00]} 36. Bd6 {[%emt 0:01:53]} Nd5
{[%emt 0:00:00]} 37. Bb8 {[%emt 0:04:22]} Rd7 {[%emt 0:00:00]} 38. Bg3 {
[%emt 0:10:14]} Ne7 {[%emt 0:00:18]} 39. Ke4 {[%emt 0:00:55]} Nd5 {[%emt 0:00:
39]} 40. f4 {[%emt 0:00:00]} Nf6+ {[%emt 0:00:00]} 41. Kf3 {[%emt 0:00:59]} h5
{[%emt 0:05:23]} 42. g5 {[%emt 0:01:42]} Ng8 {[%emt 0:01:07]} 43. Bf2 {[%emt 0:
01:14]} Ne7 {[%emt 0:00:41]} 44. e4 {[%emt 0:00:25]} Nc6 {[%emt 0:00:18]} 45.
Rd3 {[%emt 0:00:03]} g6 {[%emt 0:01:38]} 46. Rd2 {[%emt 0:03:34]} Ke8 {[%emt 0:
03:45]} 47. Be3 {[%emt 0:03:25]} Kf7 {[%emt 0:00:49]} 48. Rd1 {[%emt 0:00:20]}
Ke8 {[%emt 0:00:30]} 49. f5 {[%emt 0:14:26]} gxf5 {[%emt 0:01:12]} 50. exf5 {
[%emt 0:00:06]} exf5 {[%emt 0:00:08]} 51. Kf4 {[%emt 0:00:04]} Rd5 {[%emt 0:11:
25]} 52. g6 {[%emt 0:01:25]} Ne7 {[%emt 0:01:22]} 53. Kg5 {[%emt 0:00:54]} f4+
{[%emt 0:01:41]} 54. Kxf4 {[%emt 0:00:06]} Nxg6+ {[%emt 0:00:04]} 55. Ke4 {
[%emt 0:00:04]} Ne7 {[%emt 0:01:23]} 56. Bf4 {[%emt 0:00:15]} Ra5 {[%emt 0:00:
53]} 57. Be5 {[%emt 0:00:20]} Ra2 {[%emt 0:02:05]} 58. Rh1 {[%emt 0:00:08]} Kd7
{[%emt 0:01:57]} 59. Rxh5 {[%emt 0:00:11]} Re2+ {[%emt 0:00:17]} 60. Kd3 {
[%emt 0:00:04]} Re1 {[%emt 0:00:31]} 61. Bf4 {[%emt 0:00:29]} Rd1+ {[%emt 0:00:
48]} 62. Ke4 {[%emt 0:00:20]} Re1+ {[%emt 0:00:40]} 63. Be3 {[%emt 0:00:02]}
Rd1 {[%emt 0:00:06]} 64. Rh7 {[%emt 0:00:31]} Ke6 {[%emt 0:00:24]} 65. Rh6+ {
[%emt 0:00:02]} Kd7 {[%emt 0:00:10]} 66. Ke5 {[%emt 0:00:49]} Re1 {[%emt 0:00:
32]} 67. Rh3 {[%emt 0:00:20]} Rd1 {[%emt 0:00:10]} 68. Rh2 {[%emt 0:00:40]} Re1
{[%emt 0:00:09]} 69. Ke4 {[%emt 0:00:06]} Ke6 {[%emt 0:00:35]} 70. Ra2 {
[%emt 0:00:22]} Kd7 {[%emt 0:00:38]} 71. Kd3 {[%emt 0:00:15]} Nd5 {[%emt 0:00:
55]} 72. Bd2 {[%emt 0:00:09]} Rh1 {[%emt 0:01:36]} 73. Ke4 {[%emt 0:00:35]} Rh5
{[%emt 0:02:30]} 74. Ra7+ {[%emt 0:00:43]} Ke6 {[%emt 0:00:21]} 75. Ra6+ {
[%emt 0:00:07]} Kd7 {[%emt 0:00:15]} 76. Be1 {[%emt 0:01:14]} Ke7 {[%emt 0:02:
55]} 77. Bh4+ {[%emt 0:00:50]} Rxh4+ {[%emt 0:00:54]} 78. Kxd5 {[%emt 0:00:05]}
Rh5+ {[%emt 0:00:07]} 79. Kc4 {[%emt 0:00:06]} Kd7 {[%emt 0:00:07]} 80. d5 {
[%emt 0:00:13]} Rh1 {[%emt 0:00:10]} 81. Ra7+ {[%emt 0:00:07]} Kd6 {[%emt 0:00:
06]} 82. Ra6+ {[%emt 0:00:05]} Kd7 {[%emt 0:00:05]} 1/2-1/2

[Event "25th European Club Cup Women 2021"]
[Site "Struga"]
[Date "2021.09.24"]
[Round "7.10"]
[White "Dzagnidze, Nana"]
[Black "Atalik, Ekaterina"]
[Result "*"]
[ECO "C67"]
[WhiteElo "2525"]
[BlackElo "2429"]
[Annotator "ChessBase"]
[PlyCount "60"]
[EventDate "2021.09.18"]
[EventType "team-tourn"]
[EventCountry "MKD"]
[SourceTitle "playchess.com"]
[Source "ChessBase"]
[SourceQuality "1"]
[TimeControl "40/5400+30:1800+30"]

1. e4 {[%emt 0:00:03]} e5 {[%emt 0:00:12]} 2. Nf3 {[%emt 0:00:05]} Nc6 {
[%emt 0:00:10]} 3. Bb5 {[%emt 0:00:06]} Nf6 {[%emt 0:00:12]} 4. O-O {[%emt 0:
00:14]} Nxe4 {[%emt 0:00:19]} 5. d4 {[%emt 0:00:08]} Nd6 {[%emt 0:00:33]} 6.
dxe5 {[%emt 0:00:07]} Nxb5 {[%emt 0:00:12]} 7. a4 {[%emt 0:00:06]} d6 {[%emt 0:
01:07]} 8. e6 {[%emt 0:00:11]} Bxe6 {[%emt 1:31:45]} 9. axb5 {[%emt 0:00:07]}
Ne5 {[%emt 0:00:00]} 10. Nd4 {[%emt 0:00:10]} Be7 {[%emt 0:00:00]} 11. f4 {
[%emt 0:08:32]} Nc4 {[%emt 0:00:00]} 12. Qe2 {[%emt 0:08:44]} Nb6 {[%emt 0:00:
00]} 13. b3 {[%emt 0:21:19]} O-O {[%emt 0:00:00]} 14. Nxe6 {[%emt 0:00:30]}
fxe6 {[%emt 0:00:00]} 15. Qxe6+ {[%emt 0:00:00]} Kh8 {[%emt 0:00:00]} 16. Bb2 {
[%emt 0:00:00]} Bf6 {[%emt 0:00:00]} 17. Bxf6 {[%emt 0:00:00]} Rxf6 {[%emt 0:
00:00]} 18. Qe4 {[%emt 0:00:00]} d5 {[%emt 0:00:00]} 19. Qd4 {[%emt 0:00:00]}
Qf8 {[%emt 0:00:00]} 20. Nc3 {[%emt 0:00:00]} c6 {[%emt 0:00:00]} 21. bxc6 {
[%emt 0:00:00]} bxc6 {[%emt 0:00:00]} 22. Na4 {[%emt 0:00:00]} Nxa4 {[%emt 0:
00:00]} 23. Rxa4 {[%emt 0:00:00]} h6 {[%emt 0:00:00]} 24. Rxa7 {[%emt 0:00:00]}
Rxa7 {[%emt 0:00:00]} 25. Qxa7 {[%emt 0:00:00]} Rxf4 {[%emt 0:00:00]} 26. Rxf4
{[%emt 0:00:00]} Qxf4 {[%emt 0:00:00]} 27. Qa8+ {[%emt 0:00:00]} Kh7 {[%emt 0:
00:00]} 28. Qxc6 {[%emt 0:00:00]} Qe3+ {[%emt 0:00:00]} 29. Kf1 {[%emt 0:00:00]
} Qf4+ {[%emt 0:00:00]} 30. Kg1 {[%emt 0:08:30]} Qe3+ {[%emt 0:00:00]} *

[Event "25th European Club Cup Women 2021"]
[Site "Struga"]
[Date "2021.09.24"]
[Round "7.11"]
[White "Bulmaga, Irina"]
[Black "Paehtz, Elisabeth"]
[Result "1/2-1/2"]
[ECO "C10"]
[WhiteElo "2407"]
[BlackElo "2465"]
[Annotator "ChessBase"]
[PlyCount "83"]
[EventDate "2021.09.18"]
[EventType "team-tourn"]
[EventCountry "MKD"]
[SourceTitle "playchess.com"]
[Source "ChessBase"]
[SourceQuality "1"]
[TimeControl "40/5400+30:1800+30"]

1. e4 {[%emt 0:00:04]} e6 {[%emt 0:00:01]} 2. d4 {[%emt 0:00:09]} d5 {[%emt 0:
00:03]} 3. Nc3 {[%emt 0:00:07]} Be7 {[%emt 0:00:04]} 4. Be3 {[%emt 1:32:10]} b6
{[%emt 0:05:47]} 5. exd5 {[%emt 0:00:00]} exd5 {[%emt 0:00:03]} 6. Qf3 {
[%emt 0:00:00]} Nf6 {[%emt 0:01:17]} 7. h3 {[%emt 0:00:00]} O-O {[%emt 0:04:14]
} 8. O-O-O {[%emt 0:00:00]} Bb7 {[%emt 0:07:53]} 9. Bd3 {[%emt 0:00:00]} Nbd7 {
[%emt 0:10:21]} 10. g4 {[%emt 0:00:00]} c5 {[%emt 0:01:07]} 11. g5 {[%emt 0:00:
00]} Ne4 {[%emt 0:00:16]} 12. Bxe4 {[%emt 0:00:00]} dxe4 {[%emt 0:00:09]} 13.
Qg4 {[%emt 0:00:00]} cxd4 {[%emt 0:19:48]} 14. Rxd4 {[%emt 0:00:00]} Bc6 {
[%emt 0:00:13]} 15. Nge2 {[%emt 0:00:00]} Qc8 {[%emt 0:07:00]} 16. Nd5 {
[%emt 0:00:00]} Bc5 {[%emt 0:06:44]} 17. b4 {[%emt 0:00:00]} Bxd5 {[%emt 0:03:
54]} 18. Rxd5 {[%emt 0:00:00]} f5 {[%emt 0:02:34]} 19. Rxf5 {[%emt 0:00:00]}
Bxe3+ {[%emt 0:05:15]} 20. fxe3 {[%emt 0:00:00]} Qc4 {[%emt 0:00:35]} 21. Rd1 {
[%emt 0:00:00]} Rac8 {[%emt 0:08:49]} 22. Nd4 {[%emt 0:00:00]} Qc3 {[%emt 0:03:
37]} 23. Rxf8+ {[%emt 0:01:00]} Nxf8 {[%emt 0:00:05]} 24. Qxe4 {[%emt 0:00:43]}
Qa3+ {[%emt 0:00:05]} 25. Kd2 {[%emt 0:00:57]} Qxb4+ {[%emt 0:00:03]} 26. Ke2 {
[%emt 0:01:55]} Qc4+ {[%emt 0:00:03]} 27. Rd3 {[%emt 0:02:45]} Qxa2 {[%emt 0:
00:46]} 28. Rb3 {[%emt 0:00:04]} Qa6+ {[%emt 0:00:44]} 29. Rb5 {[%emt 0:01:49]}
Rc5 {[%emt 0:02:12]} 30. Qd3 {[%emt 0:00:03]} Qc8 {[%emt 0:03:39]} 31. Rxc5 {
[%emt 0:00:58]} bxc5 {[%emt 0:00:08]} 32. Nf5 {[%emt 0:01:40]} Qe6 {[%emt 0:00:
37]} 33. e4 {[%emt 0:00:23]} Nd7 {[%emt 0:03:03]} 34. Ke3 {[%emt 0:00:14]} g6 {
[%emt 0:01:14]} 35. Nh6+ {[%emt 0:00:37]} Kf8 {[%emt 0:00:28]} 36. Ng4 {
[%emt 0:00:27]} Ke7 {[%emt 0:00:16]} 37. Qc3 {[%emt 0:00:55]} Qd6 {[%emt 0:01:
09]} 38. Qg7+ {[%emt 0:01:06]} Kd8 {[%emt 0:00:05]} 39. e5 {[%emt 0:01:13]}
Qd4+ {[%emt 0:00:13]} 40. Ke2 {[%emt 0:00:00]} Qe4+ {[%emt 0:00:00]} 41. Kd2 {
[%emt 0:09:58]} Qf4+ {[%emt 0:02:07]} 42. Ke2 {[%emt 0:01:58]} 1/2-1/2

[Event "25th European Club Cup Women 2021"]
[Site "Struga"]
[Date "2021.09.24"]
[Round "7.12"]
[White "Skripchenko, Almira"]
[Black "Stojkovska, Monika"]
[Result "1-0"]
[ECO "C13"]
[WhiteElo "2396"]
[BlackElo "2081"]
[Annotator "NA"]
[PlyCount "67"]
[EventDate "2021.09.18"]
[EventType "team-tourn"]
[EventCountry "MKD"]
[SourceTitle "playchess.com"]
[Source "ChessBase"]
[SourceQuality "1"]
[TimeControl "40/5400+30:1800+30"]

1. e4 {[%emt 0:00:03]} e6 {[%emt 0:00:16]} 2. d4 {[%emt 0:00:20]} d5 {[%emt 0:
00:07]} 3. Nc3 {[%emt 0:00:33]} dxe4 {[%emt 0:00:31]} 4. Nxe4 {[%emt 0:00:09]}
Nd7 {[%emt 0:00:12]} 5. Nf3 {[%emt 0:01:12]} Ngf6 {[%emt 1:31:54]} 6. Nxf6+ {
[%emt 0:03:42]} Nxf6 {[%emt 0:00:00]} 7. Bg5 {[%emt 0:00:42]} c5 {[%emt 0:00:
00]} 8. Bxf6 {[%emt 0:04:02]} gxf6 {[%emt 0:00:00]} 9. Bb5+ {[%emt 0:01:01]}
Bd7 {[%emt 0:00:00]} 10. Bxd7+ {[%emt 0:00:17]} Qxd7 {[%emt 0:00:00]} 11. c3 {
[%emt 0:00:46]} cxd4 {[%emt 0:00:00]} 12. Nxd4 {[%emt 0:02:06]} Bc5 {[%emt 0:
00:00]} 13. Nb3 {[%emt 0:06:35]} Qxd1+ {[%emt 0:00:00]} 14. Rxd1 {[%emt 0:00:
16]} Bb6 {[%emt 0:00:00]} 15. Ke2 {[%emt 0:00:11]} Rg8 {[%emt 0:00:00]} 16. g3
{[%emt 0:01:41]} Ke7 {[%emt 0:00:00]} 17. a4 {[%emt 0:08:34]} a6 {[%emt 0:00:
00]} 18. Rd3 {[%emt 0:11:04]} Rad8 {[%emt 0:00:00]} 19. Rhd1 {[%emt 0:02:30]}
Rxd3 {[%emt 0:00:00]} 20. Rxd3 {[%emt 0:00:19]} Rg5 {[%emt 0:00:00]} 21. Nd2 {
[%emt 0:08:54]} Re5+ {[%emt 0:00:00]} 22. Kf1 {[%emt 0:00:11]} Rf5 {[%emt 0:00:
00]} 23. Ne4 {[%emt 0:00:59]} Ba7 {[%emt 0:00:00]} 24. Nd6 {[%emt 0:06:48]} Rd5
{[%emt 0:00:00]} 25. Rxd5 {[%emt 0:01:49]} exd5 {[%emt 0:00:00]} 26. Nc8+ {
[%emt 0:00:06]} Kd7 {[%emt 0:00:00]} 27. Nxa7 {[%emt 0:00:06]} Kc7 {[%emt 0:00:
00]} 28. Ke2 {[%emt 0:00:24]} Kb8 {[%emt 0:00:00]} 29. Kd3 {[%emt 0:00:31]}
Kxa7 {[%emt 0:00:00]} 30. Kd4 {[%emt 0:00:03]} Kb6 {[%emt 0:00:23]} 31. Kxd5 {
[%emt 0:00:06]} Kc7 {[%emt 0:01:37]} 32. a5 {[%emt 0:00:16]} Kd7 {[%emt 0:01:
01]} 33. Kc5 {[%emt 0:01:08]} Kc7 {[%emt 0:00:07]} 34. g4 {[%emt 0:01:33]} 1-0

[Event "25th European Club Cup Women 2021"]
[Site "Struga"]
[Date "2021.09.24"]
[Round "7.13"]
[White "Muzychuk, Anna"]
[Black "Saduakassova, Dinara"]
[Result "1/2-1/2"]
[ECO "C81"]
[WhiteElo "2534"]
[BlackElo "2489"]
[Annotator "ChessBase"]
[PlyCount "85"]
[EventDate "2021.09.18"]
[EventType "team-tourn"]
[EventCountry "MKD"]
[SourceTitle "playchess.com"]
[Source "ChessBase"]
[SourceQuality "1"]
[TimeControl "40/5400+30:1800+30"]

1. e4 {[%emt 0:00:02]} e5 {[%emt 0:00:08]} 2. Nf3 {[%emt 0:00:04]} Nc6 {
[%emt 0:00:03]} 3. Bb5 {[%emt 0:00:08]} a6 {[%emt 0:00:05]} 4. Ba4 {[%emt 0:00:
06]} Nf6 {[%emt 0:00:05]} 5. O-O {[%emt 0:00:09]} Nxe4 {[%emt 0:00:17]} 6. d4 {
[%emt 0:00:07]} b5 {[%emt 0:00:04]} 7. Bb3 {[%emt 0:00:11]} d5 {[%emt 0:00:05]}
8. dxe5 {[%emt 0:00:20]} Be6 {[%emt 0:00:05]} 9. Qe2 {[%emt 0:00:20]} Be7 {
[%emt 0:00:21]} 10. Rd1 {[%emt 0:00:30]} O-O {[%emt 0:00:11]} 11. c4 {[%emt 0:
00:27]} bxc4 {[%emt 0:00:08]} 12. Bxc4 {[%emt 0:00:08]} Bc5 {[%emt 0:00:04]}
13. Be3 Bxe3 14. Qxe3 Qb8 {[%emt 0:00:15]} 15. Bb3 {[%emt 0:00:59]} Na5 {
[%emt 0:00:10]} 16. Nbd2 {[%emt 0:00:41]} Qa7 {[%emt 0:01:15]} 17. Nxe4 {
[%emt 0:01:17]} Qxe3 {[%emt 0:00:10]} 18. fxe3 {[%emt 0:00:03]} Nxb3 {[%emt 0:
00:37]} 19. axb3 {[%emt 0:00:08]} dxe4 {[%emt 0:00:04]} 20. Nd4 {[%emt 0:00:06]
} Rfb8 {[%emt 0:01:47]} 21. Rdc1 {[%emt 0:04:04]} Bxb3 {[%emt 0:01:05]} 22.
Rxc7 {[%emt 0:00:34]} Be6 {[%emt 0:00:46]} 23. Rd1 {[%emt 0:03:29]} Rxb2 {
[%emt 0:02:50]} 24. Nxe6 {[%emt 0:00:58]} fxe6 {[%emt 0:00:14]} 25. Rdd7 {
[%emt 0:00:17]} Rb1+ {[%emt 0:00:21]} 26. Kf2 {[%emt 0:00:04]} Rb2+ {[%emt 0:
00:04]} 27. Kg3 {[%emt 0:01:49]} Kh8 {[%emt 0:00:11]} 28. Rxg7 {[%emt 0:01:19]}
Rg8 {[%emt 0:00:11]} 29. Rxg8+ {[%emt 0:00:10]} Kxg8 {[%emt 0:00:04]} 30. Re7 {
[%emt 0:00:25]} Rb6 {[%emt 0:34:28]} 31. Kf4 {[%emt 0:08:30]} a5 {[%emt 0:00:
19]} 32. Ra7 {[%emt 0:00:21]} Rb2 {[%emt 0:00:42]} 33. g4 {[%emt 0:03:20]} Rxh2
{[%emt 0:01:56]} 34. Rxa5 {[%emt 0:03:39]} h5 {[%emt 0:03:40]} 35. Ra8+ {
[%emt 0:01:37]} Kf7 {[%emt 0:01:33]} 36. Ra7+ {[%emt 0:00:07]} Kg6 {[%emt 0:02:
52]} 37. gxh5+ {[%emt 0:05:36]} Rxh5 {[%emt 0:00:16]} 38. Re7 {[%emt 0:00:28]}
Rh4+ {[%emt 0:00:28]} 39. Kg3 {[%emt 0:00:02]} Rh5 {[%emt 0:03:09]} 40. Rxe6+ {
[%emt 0:00:00]} Kf5 {[%emt 0:00:00]} 41. Re8 {[%emt 0:03:25]} Rg5+ {[%emt 0:00:
20]} 42. Kf2 {[%emt 0:00:13]} Rg6 {[%emt 0:00:06]} 43. Re7 {[%emt 1:35:47]}
1/2-1/2